[Event "Titled Tuesday Blitz April 12 Late 2022"]
[White "Kosteniuk, Alexandra"]
[Black "Stelmaszyk, Nico"]
[WhiteFideId "4128125"]
[BlackFideId "16200462"]
[WhiteElo "2469"]
[BlackElo "2119"]
[Result "1-0"]
[Round "02"]
[TimeControl "180+1"]
[Date "2022.04.13"]
[WhiteClock "0:00:50"]
[BlackClock "0:01:47"]

1. e4 {[%clk 0:03:00]}  e5 {[%clk 0:02:58]} 2. Nf3 {[%clk 0:03:00]}  Nf6 {[%clk 0:02:59]} 3. Nxe5 {[%clk 0:02:59]}  Nxe4 {[%clk 0:02:59]} 4. Qe2 {[%clk 0:02:58]}  Qe7 {[%clk 0:03:00]} 5. Qxe4 {[%clk 0:02:58]}  d6 {[%clk 0:03:01]} 6. d4 {[%clk 0:02:58]}  dxe5 {[%clk 0:03:02]} 7. dxe5 {[%clk 0:02:58]}  Nc6 {[%clk 0:03:02]} 8. Nc3 {[%clk 0:02:56]}  Qxe5 {[%clk 0:03:02]} 9. Qxe5+ {[%clk 0:02:56]}  Nxe5 {[%clk 0:03:03]} 10. Bf4 {[%clk 0:02:56]}  Bd6 {[%clk 0:03:04]} 11. Nb5 {[%clk 0:02:44]}  Nd3+ {[%clk 0:03:03]} 12. Bxd3 {[%clk 0:02:44]}  Bxf4 {[%clk 0:03:04]} 13. g3 {[%clk 0:02:42]}  Bd6 {[%clk 0:02:41]} 14. Nxd6+ {[%clk 0:02:41]}  cxd6 {[%clk 0:02:42]} 15. O-O-O {[%clk 0:02:41]}  Be6 {[%clk 0:02:41]} 16. f4 {[%clk 0:02:37]}  g6 {[%clk 0:02:40]} 17. Rhe1 {[%clk 0:02:36]}  O-O-O {[%clk 0:02:26]} 18. Be4 {[%clk 0:02:34]}  d5 {[%clk 0:02:23]} 19. Bf3 {[%clk 0:02:34]}  h5 {[%clk 0:02:22]} 20. h4 {[%clk 0:02:29]}  Rd7 {[%clk 0:02:21]} 21. Rd4 {[%clk 0:02:29]}  Rhd8 {[%clk 0:02:21]} 22. Re5 {[%clk 0:02:29]}  Kc7 {[%clk 0:02:21]} 23. Be2 {[%clk 0:02:25]}  a6 {[%clk 0:02:21]} 24. Bd3 {[%clk 0:02:25]}  Rd6 {[%clk 0:02:19]} 25. a4 {[%clk 0:02:20]}  Kc6 {[%clk 0:02:19]} 26. b4 {[%clk 0:02:20]}  b5 {[%clk 0:02:19]} 27. axb5+ {[%clk 0:02:12]}  axb5 {[%clk 0:02:20]} 28. Kb2 {[%clk 0:02:00]}  Kb6 {[%clk 0:02:15]} 29. Be2 {[%clk 0:01:52]}  Rc8 {[%clk 0:02:12]} 30. Bf3 {[%clk 0:01:49]}  Rcd8 {[%clk 0:02:12]} 31. c3 {[%clk 0:01:43]}  R8d7 {[%clk 0:02:08]} 32. Be2 {[%clk 0:01:39]}  Rd8 {[%clk 0:02:08]} 33. Rd1 {[%clk 0:01:37]}  Rc8 {[%clk 0:02:01]} 34. Ra1 {[%clk 0:01:27]}  Rdc6 {[%clk 0:02:01]} 35. Ra3 {[%clk 0:01:24]}  d4 {[%clk 0:01:55]} 36. Rxb5+ {[%clk 0:01:23]}  Kc7 {[%clk 0:01:55]} 37. cxd4 {[%clk 0:01:21]}  Kd6 {[%clk 0:01:55]} 38. Bd3 {[%clk 0:01:19]}  Rc1 {[%clk 0:01:55]} 39. Ra6+ {[%clk 0:01:16]}  Ke7 {[%clk 0:01:55]} 40. Rc5 {[%clk 0:01:10]}  Rd1 {[%clk 0:01:56]} 41. Rxc8 {[%clk 0:01:06]}  Bxc8 {[%clk 0:01:57]} 42. Ra7+ {[%clk 0:01:06]}  Kd6 {[%clk 0:01:57]} 43. Kc3 {[%clk 0:01:03]}  Rg1 {[%clk 0:01:56]} 44. Rxf7 {[%clk 0:01:01]}  Rxg3 {[%clk 0:01:53]} 45. Kd2 {[%clk 0:00:58]}  Kd5 {[%clk 0:01:48]} 46. Rf6 {[%clk 0:00:53]}  Kxd4 {[%clk 0:01:47]} 47. Rd6# {[%clk 0:00:50]} 1-0


[Site "https://www.chess.com"]

[Event "Titled Tuesday Blitz April 12 Late 2022"]
[White "Ladan, Nicholas"]
[Black "Barria Zuniga, Daniel"]
[WhiteFideId "30918855"]
[BlackFideId "3400816"]
[WhiteElo "2167"]
[BlackElo "2414"]
[Result "0-1"]
[Round "02"]
[TimeControl "180+1"]
[Date "2022.04.13"]
[WhiteClock "0:00:16"]
[BlackClock "0:00:18"]

1. d4 {[%clk 0:02:48]}  d5 {[%clk 0:02:58]} 2. Bf4 {[%clk 0:02:47]}  c6 {[%clk 0:02:57]} 3. e3 {[%clk 0:02:45]}  Qb6 {[%clk 0:02:58]} 4. Qc1 {[%clk 0:02:44]}  Bg4 {[%clk 0:02:56]} 5. c4 {[%clk 0:02:44]}  dxc4 {[%clk 0:02:53]} 6. Bxc4 {[%clk 0:02:43]}  Nf6 {[%clk 0:02:53]} 7. Nc3 {[%clk 0:02:37]}  e6 {[%clk 0:02:53]} 8. Nge2 {[%clk 0:02:34]}  Be7 {[%clk 0:02:53]} 9. O-O {[%clk 0:02:33]}  O-O {[%clk 0:02:53]} 10. Ng3 {[%clk 0:02:32]}  Nbd7 {[%clk 0:02:47]} 11. h3 {[%clk 0:02:31]}  Bh5 {[%clk 0:02:44]} 12. Nxh5 {[%clk 0:02:29]}  Nxh5 {[%clk 0:02:45]} 13. Bh2 {[%clk 0:02:29]}  Nhf6 {[%clk 0:02:46]} 14. a4 {[%clk 0:02:28]}  a5 {[%clk 0:02:45]} 15. Qc2 {[%clk 0:02:22]}  Rfc8 {[%clk 0:02:44]} 16. Rfd1 {[%clk 0:02:16]}  Nd5 {[%clk 0:02:43]} 17. Ne4 {[%clk 0:02:06]}  Nb4 {[%clk 0:02:41]} 18. Qb1 {[%clk 0:02:05]}  Nf6 {[%clk 0:02:41]} 19. Ng5 {[%clk 0:01:51]}  h6 {[%clk 0:02:35]} 20. Nxe6 {[%clk 0:01:47]}  fxe6 {[%clk 0:02:32]} 21. Bxe6+ {[%clk 0:01:48]}  Kh8 {[%clk 0:02:32]} 22. Bxc8 {[%clk 0:01:45]}  Rxc8 {[%clk 0:02:33]} 23. e4 {[%clk 0:01:42]}  c5 {[%clk 0:02:25]} 24. d5 {[%clk 0:01:38]}  c4 {[%clk 0:02:25]} 25. d6 {[%clk 0:01:36]}  Bd8 {[%clk 0:02:22]} 26. Ra3 {[%clk 0:01:34]}  Nd3 {[%clk 0:02:20]} 27. Raxd3 {[%clk 0:01:24]}  cxd3 {[%clk 0:02:19]} 28. Qxd3 {[%clk 0:01:21]}  Qxb2 {[%clk 0:01:54]} 29. e5 {[%clk 0:01:19]}  Nd7 {[%clk 0:01:45]} 30. e6 {[%clk 0:01:14]}  Rc1 {[%clk 0:01:44]} 31. e7 {[%clk 0:01:09]}  Bxe7 {[%clk 0:01:18]} 32. dxe7 {[%clk 0:01:08]}  Nf6 {[%clk 0:01:19]} 33. Qd8+ {[%clk 0:00:38]}  Kh7 {[%clk 0:01:18]} 34. Qd3+ {[%clk 0:00:38]}  Kh8 {[%clk 0:01:17]} 35. Bf4 {[%clk 0:00:32]}  Rxd1+ {[%clk 0:01:11]} 36. Qxd1 {[%clk 0:00:33]}  Qb4 {[%clk 0:01:10]} 37. Qd8+ {[%clk 0:00:30]}  Kh7 {[%clk 0:01:09]} 38. Be5 {[%clk 0:00:25]}  Qe1+ {[%clk 0:01:08]} 39. Kh2 {[%clk 0:00:25]}  Qxe5+ {[%clk 0:01:08]} 40. g3 {[%clk 0:00:25]}  Qe2 {[%clk 0:00:46]} 41. Kg2 {[%clk 0:00:21]}  Qe4+ {[%clk 0:00:45]} 42. Kg1 {[%clk 0:00:21]}  Qxa4 {[%clk 0:00:45]} 43. Qd3+ {[%clk 0:00:17]}  g6 {[%clk 0:00:34]} 44. Qc3 {[%clk 0:00:15]}  Qd1+ {[%clk 0:00:29]} 45. Kh2 {[%clk 0:00:14]}  Qd6 {[%clk 0:00:27]} 46. Qxf6 {[%clk 0:00:11]}  Qxf6 {[%clk 0:00:27]} 47. e8=Q {[%clk 0:00:12]}  Qxf2+ {[%clk 0:00:27]} 48. Kh1 {[%clk 0:00:13]}  Qf1+ {[%clk 0:00:18]} 49. Kh2 {[%clk 0:00:13]}  Qf2+ {[%clk 0:00:15]} 50. Kh1 {[%clk 0:00:13]}  Qf6 {[%clk 0:00:15]} 51. Qd7+ {[%clk 0:00:12]}  Qg7 {[%clk 0:00:15]} 52. Qb5 {[%clk 0:00:12]}  Qc7 {[%clk 0:00:15]} 53. h4 {[%clk 0:00:11]}  Qc6+ {[%clk 0:00:15]} 54. Qxc6 {[%clk 0:00:05]}  bxc6 {[%clk 0:00:16]} 55. h5 {[%clk 0:00:06]}  gxh5 {[%clk 0:00:16]} 56. Kh2 {[%clk 0:00:06]}  Kg6 {[%clk 0:00:16]} 57. Kh3 {[%clk 0:00:07]}  Kg5 {[%clk 0:00:16]} 58. Kh2 {[%clk 0:00:07]}  Kg4 {[%clk 0:00:16]} 59. Kg2 {[%clk 0:00:08]}  h4 {[%clk 0:00:17]} 60. Kh2 {[%clk 0:00:09]}  hxg3+ {[%clk 0:00:17]} 61. Kh1 {[%clk 0:00:10]}  h5 {[%clk 0:00:17]} 62. Kg2 {[%clk 0:00:11]}  h4 {[%clk 0:00:17]} 63. Kh1 {[%clk 0:00:12]}  h3 {[%clk 0:00:17]} 64. Kg1 {[%clk 0:00:12]}  Kf3 {[%clk 0:00:18]} 65. Kh1 {[%clk 0:00:13]}  Ke3 {[%clk 0:00:16]} 66. Kg1 {[%clk 0:00:14]}  a4 {[%clk 0:00:17]} 67. Kh1 {[%clk 0:00:14]}  a3 {[%clk 0:00:17]} 68. Kg1 {[%clk 0:00:15]}  a2 {[%clk 0:00:18]} 69. Kh1 {[%clk 0:00:16]}  a1=Q# {[%clk 0:00:18]} 0-1


[Site "https://www.chess.com"]

[Event "Titled Tuesday Blitz April 12 Late 2022"]
[White "Lamaze, Simon"]
[Black "Samarth, J Rao"]
[WhiteFideId "36069264"]
[BlackFideId "46652370"]
[WhiteElo "1999"]
[BlackElo "1514"]
[Result "1-0"]
[Round "02"]
[TimeControl "180+1"]
[Date "2022.04.13"]
[WhiteClock "0:00:26"]
[BlackClock "0:00:01"]

1. d4 {[%clk 0:03:00]}  d5 {[%clk 0:02:56]} 2. c4 {[%clk 0:03:01]}  e6 {[%clk 0:02:55]} 3. Nf3 {[%clk 0:03:01]}  Nf6 {[%clk 0:02:55]} 4. g3 {[%clk 0:03:02]}  Be7 {[%clk 0:02:54]} 5. Bg2 {[%clk 0:03:02]}  O-O {[%clk 0:02:55]} 6. Nc3 {[%clk 0:03:03]}  c6 {[%clk 0:02:49]} 7. b3 {[%clk 0:03:01]}  b6 {[%clk 0:02:45]} 8. O-O {[%clk 0:02:59]}  Bb7 {[%clk 0:02:44]} 9. Bb2 {[%clk 0:03:00]}  Nbd7 {[%clk 0:02:42]} 10. Qc2 {[%clk 0:03:00]}  a6 {[%clk 0:02:41]} 11. e4 {[%clk 0:03:00]}  dxe4 {[%clk 0:02:40]} 12. Nxe4 {[%clk 0:03:01]}  c5 {[%clk 0:02:38]} 13. Nxf6+ {[%clk 0:02:52]}  Nxf6 {[%clk 0:02:37]} 14. Rad1 {[%clk 0:02:48]}  Qc7 {[%clk 0:02:33]} 15. Rfe1 {[%clk 0:02:35]}  Rfd8 {[%clk 0:02:28]} 16. dxc5 {[%clk 0:02:32]}  Qxc5 {[%clk 0:02:12]} 17. Ne5 {[%clk 0:02:24]}  Bxg2 {[%clk 0:02:07]} 18. Kxg2 {[%clk 0:02:25]}  Qc7 {[%clk 0:02:03]} 19. Qe2 {[%clk 0:02:18]}  h6 {[%clk 0:01:38]} 20. Qf3 {[%clk 0:02:03]}  Rac8 {[%clk 0:01:12]} 21. Rxd8+ {[%clk 0:01:54]}  Bxd8 {[%clk 0:01:00]} 22. Rd1 {[%clk 0:01:52]}  Be7 {[%clk 0:01:00]} 23. a3 {[%clk 0:01:45]}  Bd6 {[%clk 0:00:54]} 24. Re1 {[%clk 0:01:39]}  Qe7 {[%clk 0:00:36]} 25. b4 {[%clk 0:01:15]}  a5 {[%clk 0:00:25]} 26. Nc6 {[%clk 0:01:02]}  Qc7 {[%clk 0:00:24]} 27. b5 {[%clk 0:01:02]}  Nd7 {[%clk 0:00:19]} 28. Qg4 {[%clk 0:01:00]}  g6 {[%clk 0:00:03]} 29. Rxe6 {[%clk 0:00:34]}  Nf8 {[%clk 0:00:02]} 30. Re2 {[%clk 0:00:31]}  Bc5 {[%clk 0:00:01]} 31. Qf3 {[%clk 0:00:26]} 1-0


[Site "https://www.chess.com"]

[Event "Titled Tuesday Blitz April 12 Late 2022"]
[White "Lin, Dachey"]
[Black "Narayanan.S.L"]
[WhiteFideId "2029650"]
[BlackFideId "5058422"]
[WhiteElo "2313"]
[BlackElo "2494"]
[Result "1-0"]
[Round "02"]
[TimeControl "180+1"]
[Date "2022.04.12"]
[WhiteClock "0:00:19"]
[BlackClock "0:00:28"]

1. Nc3 {[%clk 0:03:00]}  g6 {[%clk 0:02:55]} 2. e4 {[%clk 0:03:01]}  Bg7 {[%clk 0:02:55]} 3. f4 {[%clk 0:03:02]}  a6 {[%clk 0:02:51]} 4. Nf3 {[%clk 0:03:01]}  b5 {[%clk 0:02:51]} 5. g3 {[%clk 0:03:00]}  Bb7 {[%clk 0:02:51]} 6. d3 {[%clk 0:03:01]}  b4 {[%clk 0:02:46]} 7. Ne2 {[%clk 0:03:00]}  d5 {[%clk 0:02:47]} 8. Bg2 {[%clk 0:02:58]}  dxe4 {[%clk 0:02:47]} 9. Ng5 {[%clk 0:02:59]}  Nf6 {[%clk 0:02:47]} 10. O-O {[%clk 0:02:49]}  O-O {[%clk 0:02:41]} 11. Nxe4 {[%clk 0:02:47]}  Qc8 {[%clk 0:02:39]} 12. Qe1 {[%clk 0:02:45]}  Nxe4 {[%clk 0:02:36]} 13. dxe4 {[%clk 0:02:43]}  c5 {[%clk 0:02:37]} 14. Rb1 {[%clk 0:02:25]}  Nc6 {[%clk 0:02:36]} 15. e5 {[%clk 0:02:25]}  Nd4 {[%clk 0:02:34]} 16. Nxd4 {[%clk 0:02:04]}  Bxg2 {[%clk 0:02:34]} 17. Kxg2 {[%clk 0:02:04]}  cxd4 {[%clk 0:02:35]} 18. Rf2 {[%clk 0:02:02]}  a5 {[%clk 0:02:34]} 19. Qe4 {[%clk 0:01:57]}  Rd8 {[%clk 0:02:30]} 20. b3 {[%clk 0:01:57]}  Qf5 {[%clk 0:02:10]} 21. Qxf5 {[%clk 0:01:26]}  gxf5 {[%clk 0:02:11]} 22. Rd2 {[%clk 0:01:24]}  f6 {[%clk 0:02:08]} 23. exf6 {[%clk 0:01:18]}  Bxf6 {[%clk 0:02:09]} 24. Bb2 {[%clk 0:01:19]}  Rac8 {[%clk 0:02:07]} 25. Rbd1 {[%clk 0:01:16]}  Kf7 {[%clk 0:02:08]} 26. Re2 {[%clk 0:01:02]}  e6 {[%clk 0:02:05]} 27. Rd3 {[%clk 0:01:01]}  Rc6 {[%clk 0:02:05]} 28. Red2 {[%clk 0:01:02]}  Rdc8 {[%clk 0:02:03]} 29. Bxd4 {[%clk 0:01:01]}  Rxc2 {[%clk 0:02:03]} 30. Bxf6 {[%clk 0:01:00]}  Rxd2+ {[%clk 0:02:03]} 31. Rxd2 {[%clk 0:01:00]}  Kxf6 {[%clk 0:02:03]} 32. Kf3 {[%clk 0:01:00]}  Rc3+ {[%clk 0:02:03]} 33. Kf2 {[%clk 0:01:01]}  h5 {[%clk 0:02:04]} 34. Re2 {[%clk 0:00:55]}  h4 {[%clk 0:02:02]} 35. Kg2 {[%clk 0:00:54]}  hxg3 {[%clk 0:02:01]} 36. hxg3 {[%clk 0:00:54]}  Rd3 {[%clk 0:01:56]} 37. Kf2 {[%clk 0:00:55]}  Ke7 {[%clk 0:01:56]} 38. Re5 {[%clk 0:00:46]}  Rd2+ {[%clk 0:01:56]} 39. Re2 {[%clk 0:00:46]}  Rd5 {[%clk 0:01:52]} 40. Ke3 {[%clk 0:00:44]}  Rc5 {[%clk 0:01:52]} 41. Rd2 {[%clk 0:00:43]}  Rc3+ {[%clk 0:01:49]} 42. Rd3 {[%clk 0:00:42]}  Rc1 {[%clk 0:01:49]} 43. Rd2 {[%clk 0:00:39]}  Rg1 {[%clk 0:01:49]} 44. Kf2 {[%clk 0:00:38]}  Ra1 {[%clk 0:01:50]} 45. Kf3 {[%clk 0:00:38]}  Kf6 {[%clk 0:01:50]} 46. Re2 {[%clk 0:00:38]}  Kf7 {[%clk 0:01:45]} 47. Rd2 {[%clk 0:00:38]}  Ke7 {[%clk 0:01:46]} 48. Kf2 {[%clk 0:00:37]}  Rc1 {[%clk 0:01:45]} 49. Kf3 {[%clk 0:00:37]}  Rc5 {[%clk 0:01:44]} 50. Kf2 {[%clk 0:00:38]}  Rc3 {[%clk 0:01:30]} 51. Re2 {[%clk 0:00:37]}  Kd6 {[%clk 0:01:29]} 52. Rd2+ {[%clk 0:00:37]}  Kc5 {[%clk 0:01:29]} 53. Re2 {[%clk 0:00:38]}  Kd4 {[%clk 0:01:20]} 54. Rxe6 {[%clk 0:00:36]}  Kd3 {[%clk 0:01:21]} 55. Re3+ {[%clk 0:00:36]}  Kd4 {[%clk 0:00:46]} 56. Rxc3 {[%clk 0:00:16]}  Kxc3 {[%clk 0:00:46]} 57. g4 {[%clk 0:00:16]}  Kb2 {[%clk 0:00:42]} 58. gxf5 {[%clk 0:00:16]}  Kxa2 {[%clk 0:00:42]} 59. f6 {[%clk 0:00:17]}  a4 {[%clk 0:00:37]} 60. f7 {[%clk 0:00:16]}  Kxb3 {[%clk 0:00:36]} 61. f8=Q {[%clk 0:00:17]}  a3 {[%clk 0:00:37]} 62. Qf7+ {[%clk 0:00:17]}  Kb2 {[%clk 0:00:36]} 63. Qf6+ {[%clk 0:00:18]}  Ka2 {[%clk 0:00:36]} 64. Qe6+ {[%clk 0:00:18]}  b3 {[%clk 0:00:36]} 65. Ke2 {[%clk 0:00:19]}  Kb2 {[%clk 0:00:34]} 66. Kd3 {[%clk 0:00:19]}  a2 {[%clk 0:00:35]} 67. Qe2+ {[%clk 0:00:19]}  Kb1 {[%clk 0:00:33]} 68. Kc3 {[%clk 0:00:19]}  a1=Q+ {[%clk 0:00:28]} 69. Kxb3 {[%clk 0:00:18]}  Qd4 {[%clk 0:00:27]} 70. Qc2+ {[%clk 0:00:18]}  Ka1 {[%clk 0:00:28]} 71. Qa2# {[%clk 0:00:19]} 1-0


[Site "https://www.chess.com"]

[Event "Titled Tuesday Blitz April 12 Late 2022"]
[White "Melkumyan, Hrant"]
[Black "Manolache, Marius"]
[WhiteFideId "13302485"]
[BlackFideId "1201530"]
[WhiteElo "2604"]
[BlackElo "2364"]
[Result "1-0"]
[Round "02"]
[TimeControl "180+1"]
[Date "2022.04.12"]
[WhiteClock "0:00:20"]
[BlackClock "0:00:03"]

1. e4 {[%clk 0:02:51]}  c5 {[%clk 0:02:59]} 2. Nf3 {[%clk 0:02:50]}  e6 {[%clk 0:03:00]} 3. g3 {[%clk 0:02:48]}  Nc6 {[%clk 0:02:59]} 4. Bg2 {[%clk 0:02:49]}  d6 {[%clk 0:02:57]} 5. O-O {[%clk 0:02:48]}  Nf6 {[%clk 0:02:57]} 6. Re1 {[%clk 0:02:48]}  e5 {[%clk 0:02:56]} 7. c3 {[%clk 0:02:46]}  Bg4 {[%clk 0:02:55]} 8. h3 {[%clk 0:02:45]}  Bxf3 {[%clk 0:02:55]} 9. Bxf3 {[%clk 0:02:45]}  Be7 {[%clk 0:02:55]} 10. Na3 {[%clk 0:02:44]}  O-O {[%clk 0:02:52]} 11. Nc4 {[%clk 0:02:44]}  Rc8 {[%clk 0:02:50]} 12. d3 {[%clk 0:02:43]}  b5 {[%clk 0:02:49]} 13. Ne3 {[%clk 0:02:43]}  b4 {[%clk 0:02:47]} 14. Bd2 {[%clk 0:02:39]}  Rb8 {[%clk 0:02:44]} 15. Qa4 {[%clk 0:02:36]}  Qb6 {[%clk 0:02:26]} 16. Nf5 {[%clk 0:02:32]}  Rfe8 {[%clk 0:02:16]} 17. Bg5 {[%clk 0:02:19]}  Qb5 {[%clk 0:02:13]} 18. Bd1 {[%clk 0:02:13]}  a6 {[%clk 0:02:09]} 19. Bxf6 {[%clk 0:02:00]}  gxf6 {[%clk 0:02:06]} 20. Qc2 {[%clk 0:02:00]}  Bf8 {[%clk 0:02:03]} 21. Qe2 {[%clk 0:02:00]}  Kh8 {[%clk 0:02:02]} 22. Bb3 {[%clk 0:02:00]}  Qb7 {[%clk 0:01:59]} 23. Qh5 {[%clk 0:01:59]}  Nd8 {[%clk 0:01:57]} 24. Bd5 {[%clk 0:01:56]}  Qd7 {[%clk 0:01:57]} 25. a3 {[%clk 0:01:37]}  bxc3 {[%clk 0:01:48]} 26. bxc3 {[%clk 0:01:38]}  Ne6 {[%clk 0:01:48]} 27. Reb1 {[%clk 0:01:37]}  Red8 {[%clk 0:01:35]} 28. Bc4 {[%clk 0:01:33]}  a5 {[%clk 0:01:33]} 29. a4 {[%clk 0:01:31]}  Kg8 {[%clk 0:01:33]} 30. Rb5 {[%clk 0:01:30]}  Rxb5 {[%clk 0:01:31]} 31. axb5 {[%clk 0:01:31]}  Ra8 {[%clk 0:01:31]} 32. b6 {[%clk 0:01:26]}  a4 {[%clk 0:01:31]} 33. Bd5 {[%clk 0:01:23]}  Rb8 {[%clk 0:01:30]} 34. b7 {[%clk 0:01:23]}  Nd8 {[%clk 0:01:27]} 35. Qg4+ {[%clk 0:01:16]}  Kh8 {[%clk 0:01:25]} 36. Qh4 {[%clk 0:01:16]}  Bg7 {[%clk 0:01:23]} 37. Qg4 {[%clk 0:01:12]}  Bf8 {[%clk 0:01:22]} 38. Qd1 {[%clk 0:01:01]}  Nxb7 {[%clk 0:01:15]} 39. Rxa4 {[%clk 0:01:00]}  Nd8 {[%clk 0:01:14]} 40. Kg2 {[%clk 0:00:59]}  Ne6 {[%clk 0:01:10]} 41. Qa1 {[%clk 0:00:58]}  Rc8 {[%clk 0:01:08]} 42. Ra7 {[%clk 0:00:57]}  Rc7 {[%clk 0:01:08]} 43. Ra6 {[%clk 0:00:56]}  Kg8 {[%clk 0:01:06]} 44. Qa2 {[%clk 0:00:57]}  Rc8 {[%clk 0:01:04]} 45. Qe2 {[%clk 0:00:53]}  Kh8 {[%clk 0:01:03]} 46. h4 {[%clk 0:00:52]}  Rc7 {[%clk 0:01:03]} 47. Qf3 {[%clk 0:00:50]}  Rc8 {[%clk 0:01:02]} 48. Ne3 {[%clk 0:00:51]}  Kg7 {[%clk 0:00:59]} 49. Nc4 {[%clk 0:00:50]}  Rd8 {[%clk 0:00:51]} 50. Kh2 {[%clk 0:00:49]}  Qe7 {[%clk 0:00:39]} 51. Rb6 {[%clk 0:00:46]}  Rd7 {[%clk 0:00:37]} 52. Ne3 {[%clk 0:00:46]}  Qd8 {[%clk 0:00:35]} 53. Ra6 {[%clk 0:00:46]}  Rc7 {[%clk 0:00:33]} 54. Qg4+ {[%clk 0:00:46]}  Kh8 {[%clk 0:00:33]} 55. Bxe6 {[%clk 0:00:46]}  fxe6 {[%clk 0:00:33]} 56. Qxe6 {[%clk 0:00:47]}  Qd7 {[%clk 0:00:29]} 57. Qxd7 {[%clk 0:00:39]}  Rxd7 {[%clk 0:00:28]} 58. Nf5 {[%clk 0:00:40]}  Kg8 {[%clk 0:00:28]} 59. Kh3 {[%clk 0:00:36]}  Kf7 {[%clk 0:00:26]} 60. Kg4 {[%clk 0:00:37]}  Ke6 {[%clk 0:00:26]} 61. Ra8 {[%clk 0:00:36]}  Kf7 {[%clk 0:00:26]} 62. c4 {[%clk 0:00:34]}  Rb7 {[%clk 0:00:21]} 63. Kf3 {[%clk 0:00:34]}  Rd7 {[%clk 0:00:19]} 64. Ke3 {[%clk 0:00:33]}  Kg8 {[%clk 0:00:19]} 65. f4 {[%clk 0:00:32]}  Kf7 {[%clk 0:00:19]} 66. g4 {[%clk 0:00:32]}  h6 {[%clk 0:00:18]} 67. Kf3 {[%clk 0:00:31]}  Rb7 {[%clk 0:00:17]} 68. h5 {[%clk 0:00:30]}  Rd7 {[%clk 0:00:16]} 69. Ne3 {[%clk 0:00:29]}  Rb7 {[%clk 0:00:15]} 70. Nd5 {[%clk 0:00:29]}  Rd7 {[%clk 0:00:15]} 71. Nxf6 {[%clk 0:00:26]}  Kxf6 {[%clk 0:00:12]} 72. Rxf8+ {[%clk 0:00:26]}  Kg7 {[%clk 0:00:12]} 73. Rf5 {[%clk 0:00:27]}  Rd8 {[%clk 0:00:11]} 74. g5 {[%clk 0:00:22]}  exf4 {[%clk 0:00:10]} 75. g6 {[%clk 0:00:23]}  Rd7 {[%clk 0:00:10]} 76. Kxf4 {[%clk 0:00:23]}  Rb7 {[%clk 0:00:10]} 77. Rf7+ {[%clk 0:00:20]}  Rxf7+ {[%clk 0:00:09]} 78. gxf7 {[%clk 0:00:21]}  Kxf7 {[%clk 0:00:10]} 79. Kf5 {[%clk 0:00:22]}  Ke7 {[%clk 0:00:08]} 80. e5 {[%clk 0:00:21]}  Kd7 {[%clk 0:00:05]} 81. Kf6 {[%clk 0:00:19]}  dxe5 {[%clk 0:00:02]} 82. Kxe5 {[%clk 0:00:19]}  Kc6 {[%clk 0:00:03]} 83. Ke6 {[%clk 0:00:19]}  Kc7 {[%clk 0:00:03]} 84. Kd5 {[%clk 0:00:20]}  Kb6 {[%clk 0:00:03]} 85. Kd6 {[%clk 0:00:20]} 1-0


[Site "https://www.chess.com"]

[Event "Titled Tuesday Blitz April 12 Late 2022"]
[White "Migot, Tangi"]
[Black "Rego, Vinicius V. de Almeida"]
[WhiteFideId "662445"]
[BlackFideId "2106485"]
[WhiteElo "2534"]
[BlackElo "2345"]
[Result "1-0"]
[Round "02"]
[TimeControl "180+1"]
[Date "2022.04.13"]
[WhiteClock "0:00:23"]
[BlackClock "0:00:09"]

1. Nf3 {[%clk 0:03:00]}  c5 {[%clk 0:03:00]} 2. c4 {[%clk 0:03:01]}  g6 {[%clk 0:03:00]} 3. g3 {[%clk 0:03:02]}  Bg7 {[%clk 0:03:01]} 4. Bg2 {[%clk 0:03:02]}  Nc6 {[%clk 0:03:01]} 5. O-O {[%clk 0:03:02]}  e6 {[%clk 0:03:02]} 6. Nc3 {[%clk 0:03:02]}  Nge7 {[%clk 0:03:02]} 7. Rb1 {[%clk 0:03:02]}  O-O {[%clk 0:03:02]} 8. a3 {[%clk 0:03:02]}  d5 {[%clk 0:02:59]} 9. cxd5 {[%clk 0:02:58]}  Nxd5 {[%clk 0:02:59]} 10. Nxd5 {[%clk 0:02:56]}  exd5 {[%clk 0:03:00]} 11. b4 {[%clk 0:02:55]}  b6 {[%clk 0:02:54]} 12. bxc5 {[%clk 0:02:51]}  bxc5 {[%clk 0:02:55]} 13. Bb2 {[%clk 0:02:51]}  d4 {[%clk 0:02:33]} 14. Nxd4 {[%clk 0:02:36]}  Nxd4 {[%clk 0:02:33]} 15. Bxa8 {[%clk 0:02:18]}  Bf5 {[%clk 0:02:32]} 16. Bxd4 {[%clk 0:02:15]}  cxd4 {[%clk 0:02:26]} 17. Bf3 {[%clk 0:02:08]}  Bxb1 {[%clk 0:02:25]} 18. Qxb1 {[%clk 0:02:09]}  Qa5 {[%clk 0:02:24]} 19. Qd3 {[%clk 0:02:05]}  Rb8 {[%clk 0:02:18]} 20. Rc1 {[%clk 0:02:00]}  h5 {[%clk 0:02:10]} 21. Kg2 {[%clk 0:01:56]}  h4 {[%clk 0:02:09]} 22. gxh4 {[%clk 0:01:55]}  Rb2 {[%clk 0:02:02]} 23. Rc8+ {[%clk 0:01:52]}  Kh7 {[%clk 0:02:02]} 24. Qc4 {[%clk 0:01:42]}  Qf5 {[%clk 0:01:47]} 25. Rc5 {[%clk 0:01:32]}  Qf6 {[%clk 0:01:37]} 26. h5 {[%clk 0:01:23]}  Rxd2 {[%clk 0:01:32]} 27. hxg6+ {[%clk 0:01:15]}  Qxg6+ {[%clk 0:01:31]} 28. Kh3 {[%clk 0:01:15]}  Qe6+ {[%clk 0:00:42]} 29. Qxe6 {[%clk 0:01:08]}  fxe6 {[%clk 0:00:43]} 30. Ra5 {[%clk 0:01:07]}  d3 {[%clk 0:00:40]} 31. Be4+ {[%clk 0:01:07]}  Kh6 {[%clk 0:00:39]} 32. Bxd3 {[%clk 0:01:07]}  Bd4 {[%clk 0:00:38]} 33. Kg3 {[%clk 0:01:03]}  Ra2 {[%clk 0:00:35]} 34. Ra6 {[%clk 0:01:02]}  Bb6 {[%clk 0:00:33]} 35. Kf3 {[%clk 0:00:53]}  Kg5 {[%clk 0:00:33]} 36. Ra4 {[%clk 0:00:51]}  Bc5 {[%clk 0:00:30]} 37. Rg4+ {[%clk 0:00:50]}  Kf6 {[%clk 0:00:30]} 38. a4 {[%clk 0:00:50]}  Ra1 {[%clk 0:00:29]} 39. h4 {[%clk 0:00:49]}  Rf1 {[%clk 0:00:29]} 40. Rf4+ {[%clk 0:00:48]}  Ke5 {[%clk 0:00:29]} 41. Re4+ {[%clk 0:00:41]}  Kd6 {[%clk 0:00:28]} 42. e3 {[%clk 0:00:41]}  Rh1 {[%clk 0:00:26]} 43. Kg2 {[%clk 0:00:38]}  Rd1 {[%clk 0:00:26]} 44. Be2 {[%clk 0:00:38]}  Ra1 {[%clk 0:00:25]} 45. h5 {[%clk 0:00:37]}  Ba3 {[%clk 0:00:22]} 46. h6 {[%clk 0:00:32]}  Bb2 {[%clk 0:00:22]} 47. Bg4 {[%clk 0:00:31]}  Ke7 {[%clk 0:00:18]} 48. Rxe6+ {[%clk 0:00:30]}  Kf7 {[%clk 0:00:18]} 49. Ra6 {[%clk 0:00:28]}  Kg8 {[%clk 0:00:15]} 50. Bf5 {[%clk 0:00:26]}  Be5 {[%clk 0:00:09]} 51. Rxa7 {[%clk 0:00:23]} 1-0


[Site "https://www.chess.com"]

[Event "Titled Tuesday Blitz April 12 Late 2022"]
[White "Mikhalsky, Vladimir"]
[Black "Bach, Matthias"]
[WhiteFideId "14144352"]
[BlackFideId "4603168"]
[WhiteElo "2301"]
[BlackElo "2165"]
[Result "1-0"]
[Round "02"]
[TimeControl "180+1"]
[Date "2022.04.13"]
[WhiteClock "0:02:24"]
[BlackClock "0:02:34"]

1. c4 {[%clk 0:03:00]}  Nf6 {[%clk 0:02:58]} 2. Nc3 {[%clk 0:03:00]}  e6 {[%clk 0:02:55]} 3. e4 {[%clk 0:03:00]}  d5 {[%clk 0:02:55]} 4. e5 {[%clk 0:03:00]}  Ne4 {[%clk 0:02:55]} 5. Nxe4 {[%clk 0:03:00]}  dxe4 {[%clk 0:02:54]} 6. Qg4 {[%clk 0:03:00]}  Na6 {[%clk 0:02:53]} 7. Qxe4 {[%clk 0:02:57]}  Bd7 {[%clk 0:02:53]} 8. Nf3 {[%clk 0:02:42]}  Bc6 {[%clk 0:02:51]} 9. Qc2 {[%clk 0:02:39]}  Nb4 {[%clk 0:02:50]} 10. Qc3 {[%clk 0:02:36]}  Bc5 {[%clk 0:02:40]} 11. a3 {[%clk 0:02:31]}  Bxf3 {[%clk 0:02:34]} 12. axb4 {[%clk 0:02:24]} 1-0


[Site "https://www.chess.com"]